bitfinex-derivatives/quotes_SOLF0:USTF0_20250907
["timestamp","ask_amount","ask_price","bid_price","bid_amount"]
[1757253698134,5.50190665,203.52,203.46,4.38393663]
[1757253698331,8.05,203.51,203.44,6.87]
[1757253698634,8.05,203.51,203.45,4.38447005]
[1757253698935,8.05,203.51,203.46,11.25447005]
[1757253699136,8.05,203.51,203.44,6.87]
[1757253699326,13.55190665,203.51,203.46,6.87]
[1757253699532,13.55190665,203.51,203.44,6.87]
[1757253699732,13.55190665,203.51,203.46,6.87]
[1757253700331,5.50190665,203.51,203.45,118.82]
[1757253700532,8.05,203.5,203.45,125.69]
[1757253700732,13.55190665,203.51,203.46,6.87]
[1757253701533,5.50190665,203.51,203.45,118.82]
[1757253702237,5.50190665,203.51,203.46,6.87]
[1757253702736,5.50190665,203.51,203.45,118.82]
[1757253702936,8.05,203.5,203.47,6.87]
[1757253703433,5.50190665,203.51,203.45,118.82]
[1757253703630,5.50190665,203.51,203.46,11.25783615]
[1757253703935,5.50190665,203.51,203.47,4.38783615]
[1757253704132,8.05,203.5,203.45,118.82]
[1757253704435,8.05,203.5,203.47,6.87]
[1757253704639,5.50190665,203.51,203.47,6.87]
[1757253704937,8.05,203.5,203.47,6.87]
[1757253705534,5.50190665,203.51,203.47,6.87]
[1757253705734,8.05,203.5,203.47,6.87]
[1757253705939,5.50190665,203.51,203.46,6.87]
[1757253706134,5.50190665,203.5,203.47,4.38886971]
[1757253706334,5.50190665,203.5,203.45,118.82]
[1757253706530,5.50190665,203.5,203.46,4.38967002]
[1757253706736,13.55190665,203.5,203.48,6.87]
[1757253710634,13.55190665,203.5,203.49,4.5338572]
[1757253714044,8.05,203.5,203.49,4.5338572]
[1757253725647,16.80285998,203.5,203.42,6.88]
[1757253725845,14.75,203.57,203.42,6.88]
[1757253725846,7.87,203.44,203.42,6.88]
[1757253729250,13.40097202,203.44,203.37,7.64]
[1757253729445,5.53097202,203.43,203.36,118.8]
[1757253729649,7.87,203.42,203.36,126.44]
[1757253732146,7.87,203.42,203.37,7.64]
[1757253732952,7.87,203.42,203.37,118.82]
[1757253733453,7.87,203.42,203.38,7.64]
[1757253733952,7.87,203.42,203.37,118.82]
[1757253734551,7.87,203.42,203.38,7.64]
[1757253734948,7.87,203.42,203.37,118.82]
[1757253735148,5.53097202,203.44,203.38,7.64]
[1757253735349,5.53097202,203.44,203.37,118.82]
[1757253735559,7.87,203.43,203.37,126.46]
[1757253736855,5.53097202,203.45,203.37,126.46]
[1757253737347,7.87,203.44,203.37,126.46]
[1757253742155,7.87,203.44,203.38,7.64]
[1757253758771,7.87,203.44,203.35,7.87]
[1757253758772,13.67097202,203.44,203.35,7.87]
[1757253758974,8.14,203.42,203.35,7.87]
[1757253762177,13.67097202,203.42,203.35,7.87]
[1757253762370,8.14,203.42,203.35,7.87]
[1757253763080,13.67097202,203.42,203.35,7.87]
[1757253769385,8.14,203.4,203.35,7.87]
[1757253769784,5.53097202,203.41,203.34,118.82]
[1757253770084,8.14,203.4,203.35,7.87]
[1757253770785,5.53097202,203.41,203.34,118.82]
[1757253770987,8.14,203.4,203.35,7.87]
[1757253771489,5.53097202,203.41,203.35,7.87]
[1757253771679,5.53097202,203.43,203.35,7.87]
[1757253774387,8.14,203.42,203.35,7.87]
[1757253774687,13.67097202,203.42,203.35,7.87]
[1757253774888,8.14,203.42,203.35,7.87]
[1757253780692,13.67097202,203.42,203.35,7.87]
[1757253784698,5.53097202,203.41,203.35,7.87]
[1757253784905,8.14,203.4,203.35,7.87]
[1757253785196,13.24097202,203.4,203.29,8.16]
[1757253785397,7.71,203.37,203.31,8.16]
[1757253796107,5.53097202,203.35,203.27,118.84]
[1757253796407,7.71,203.34,203.32,0.03575844]
[1757253797509,5.53097202,203.35,203.32,0.03575844]
[1757253797700,7.71,203.34,203.32,0.03575844]
[1757253802306,7.71,203.35,203.32,0.03575844]
[1757253804316,13.24097202,203.35,203.32,0.03575844]
[1757253805810,5.53097202,203.34,203.32,0.03575844]
[1757253806011,7.71,203.33,203.32,0.03575844]
[1757253806809,13.24097202,203.33,203.32,0.03575844]
[1757253808415,8.21,203.33,203.32,0.03575844]
[1757253808914,8.21,203.33,203.25,8.16]
[1757253808915,0.5,203.33,203.23,179.95321529]
[1757253809115,7.71,203.32,203.23,179.95321529]
[1757253809311,7.71,203.32,203.24,8.16]
[1757253810214,0.03637116,203.3,203.24,8.16]
[1757253810414,7.71,203.29,203.24,8.16]
[1757253810917,0.03637116,203.3,203.23,179.95321529]
[1757253811314,7.71,203.29,203.23,188.11321529]
[1757253814114,7.71,203.29,203.23,179.95321529]
[1757253814416,0.03637116,203.3,203.23,179.95321529]
[1757253814610,7.71,203.29,203.24,8.16]
[1757253814812,8.14,203.29,203.23,187.35321529]
[1757253816317,8.14,203.29,203.23,179.95321529]
[1757253816717,8.14,203.29,203.24,7.4]
[1757253817824,8.14,203.29,203.23,179.95321529]
[1757253818122,8.17637116,203.3,203.24,7.4]
[1757253821831,0.03637116,203.3,203.24,126.62]
[1757253822124,0.03637116,203.3,203.25,7.4]
[1757253833532,0.03637116,203.3,203.25,11.8275]
[1757253833728,0.03637116,203.3,203.25,7.4]
[1757253834821,0.03637116,203.3,203.28,7.4]
[1757253835023,0.03637116,203.3,203.29,126.64]
[1757253839440,8.14,203.38,203.29,127.14]
[1757253839640,8.14,203.41,203.3,7.4]
[1757253840844,8.14,203.41,203.32,4.4259]
[1757253841138,8.14,203.45,203.34,7.4]
[1757253842243,8.14,203.45,203.35,4.37096534]
[1757253842439,8.14,203.45,203.38,7.4]
[1757253842635,8.14,203.45,203.39,103.77096534]
[1757253842843,8.14,203.48,203.4,4.37096534]
[1757253843141,8.14,203.48,203.41,4.37096534]
[1757253843344,8.14,203.48,203.39,106.8]
[1757253843544,8.14,203.48,203.4,4.3679159]
[1757253843741,8.14,203.48,203.41,4.3679159]
[1757253843935,8.14,203.48,203.39,106.8]
[1757253844245,8.14,203.48,203.41,7.4]
[1757253844544,8.14,203.51,203.42,4.36529942]
[1757253844742,8.14,203.51,203.43,130.92529942]
[1757253844937,8.14,203.51,203.44,4.36529942]
[1757253845135,8.14,203.51,203.43,7.4]
[1757253845136,5.53097202,203.51,203.43,12.68]
[1757253845741,7.78,203.5,203.43,12.68]
[1757253846041,7.78,203.5,203.42,28.68]
[1757253846042,13.31097202,203.5,203.42,28.68]
[1757253846243,5.53097202,203.51,203.42,28.68]
[1757253846645,7.78,203.5,203.4,7.89]
[1757253846848,7.78,203.5,203.3,330.62]
[1757253846849,5.53097202,203.5,203.39,13.72]
[1757253847041,13.31097202,203.49,203.39,13.72]
[1757253847243,5.53097202,203.49,203.39,21.61]
[1757253847444,5.53097202,203.5,203.39,21.61]
[1757253847643,5.53097202,203.49,203.39,21.61]
[1757253847844,7.78,203.48,203.39,21.61]
[1757253848646,7.78,203.49,203.39,21.61]
[1757253849052,5.53097202,203.5,203.39,21.61]
[1757253849346,7.78,203.5,203.39,21.61]
[1757253849850,5.53097202,203.51,203.39,21.61]
[1757253850052,7.78,203.5,203.39,21.61]
[1757253850350,7.78,203.5,203.4,7.89]
[1757253852561,5.53097202,203.54,203.41,4.36801691]
[1757253852750,7.78,203.53,203.43,7.89]
[1757253856859,7.78,203.53,203.3,399.4777]
[1757253857058,7.78,203.52,203.32,7.89]
[1757253857258,7.78,203.52,203.34,7.89]
[1757253857459,7.78,203.52,203.35,8.78887694]
[1757253857660,7.78,203.52,203.37,7.89]
[1757253857860,7.78,203.52,203.39,7.89]
[1757253860860,13.31097202,203.52,203.39,7.89]
[1757253861061,7.78,203.52,203.39,7.89]
[1757253862069,13.31097202,203.52,203.39,7.89]
[1757253862466,7.78,203.5,203.39,7.89]
[1757253862963,7.78,203.5,203.38,47.68]
[1757253862964,5.53097202,203.49,203.31,7.89]
[1757253863168,7.78,203.47,203.35,68.51]
[1757253863466,7.78,203.47,203.36,4.36921654]
[1757253863659,13.31097202,203.47,203.35,7.89]
[1757253864172,7.78,203.45,203.35,7.89]
[1757253867270,13.31097202,203.45,203.35,7.89]
[1757253869273,13.31097202,203.45,203.36,4.37885919]
[1757253869474,13.31097202,203.45,203.35,7.89]
[1757253869677,13.31097202,203.45,203.36,4.37885919]
[1757253869870,13.31097202,203.45,203.35,7.89]
[1757253870067,13.31097202,203.45,203.36,4.37885919]
[1757253870268,7.78,203.45,203.37,4.37913509]
[1757253870479,13.31097202,203.48,203.39,7.89]
[1757253871074,13.31097202,203.48,203.41,7.89]
[1757253871075,7.78,203.48,203.41,7.89]
[1757253874977,13.31097202,203.48,203.41,7.89]
[1757253875477,7.78,203.48,203.41,7.89]
[1757253876279,13.31097202,203.48,203.41,7.89]
[1757253876473,13.31097202,203.48,203.42,4.38534304]
[1757253876678,7.78,203.48,203.37,8.13]
[1757253876978,7.78,203.48,203.39,8.13]
[1757253877180,7.78,203.48,203.41,8.13]
[1757253877378,13.31097202,203.48,203.42,4.38531917]
[1757253877579,13.31097202,203.48,203.41,8.13]
[1757253877879,13.31097202,203.48,203.42,4.38679555]
[1757253878077,13.31097202,203.48,203.41,8.13]
[1757253878277,13.31097202,203.48,203.42,4.38698942]
[1757253878477,13.31097202,203.48,203.41,8.13]
[1757253878778,13.31097202,203.48,203.42,4.38849156]
[1757253878981,13.31097202,203.48,203.41,8.13]
[1757253879280,13.31097202,203.48,203.42,4.38849108]
[1757253879477,8.18,203.47,203.43,12.51849108]
[1757253879779,8.18,203.47,203.43,8.13]
[1757253880179,13.71097202,203.47,203.43,8.13]
[1757253880376,5.53097202,203.47,203.43,8.13]
[1757253880577,8.18,203.46,203.43,8.13]
[1757253882176,5.53097202,203.47,203.38,8.13]
[1757253882381,5.53097202,203.47,203.4,8.13]
[1757253882575,5.53097202,203.47,203.42,8.13]
[1757253882775,5.53097202,203.51,203.44,8.13]
[1757253882974,8.18,203.51,203.45,16.95421382]
[1757253883181,8.18,203.52,203.46,8.82421382]
[1757253883479,5.53097202,203.53,203.47,4.4166446]
[1757253883679,5.53097202,203.53,203.41,4.4241]
[1757253883680,5.53097202,203.53,203.48,4.4166446]
[1757253883980,8.18,203.52,203.49,4.4166446]
[1757253884181,8.18,203.52,203.46,8.13]
[1757253884482,8.18,203.52,203.48,8.13]
[1757253884672,8.18,203.52,203.49,4.41318709]
[1757253884878,8.18,203.52,203.48,8.13]
[1757253885077,8.18,203.52,203.49,4.41395387]
[1757253885281,8.18,203.52,203.48,8.13]
[1757253885579,8.18,203.52,203.49,4.41323143]
[1757253885785,8.18,203.52,203.48,8.13]
[1757253885978,8.18,203.52,203.49,4.41323143]
[1757253886175,8.18,203.51,203.48,8.13]
[1757253890686,5.53097202,203.53,203.43,8.13]
[1757253890887,5.53097202,203.53,203.45,8.13]
[1757253891082,5.53097202,203.53,203.47,8.13]
[1757253891381,8.18,203.52,203.49,8.13]
[1757253891880,5.53097202,203.53,203.49,8.13]
[1757253892083,8.18,203.52,203.49,8.13]
[1757253893184,8.18,203.52,203.44,8.13]
[1757253893380,8.18,203.52,203.46,8.13]
[1757253893581,8.18,203.52,203.48,8.13]
[1757253893780,5.53097202,203.54,203.49,4.40736635]
[1757253894080,8.18,203.55,203.51,8.13]
[1757253894287,8.18,203.55,203.43,8.13]
[1757253894489,8.18,203.55,203.47,8.13]
[1757253894686,8.18,203.55,203.49,8.13]
[1757253894991,8.18,203.55,203.5,4.40369701]
[1757253895189,8.18,203.55,203.52,8.13]
[1757253896590,5.53097202,203.58,203.52,8.13]
[1757253898286,8.18,203.57,203.52,8.13]
[1757253898485,5.53097202,203.58,203.52,8.13]
[1757253898784,5.53097202,203.58,203.46,45.72]
[1757253898990,5.53097202,203.58,203.48,8.13]
[1757253899284,8.18,203.63,203.5,8.13]
[1757253899285,5.53097202,203.62,203.5,8.13]
[1757253899485,5.53097202,203.62,203.49,8.79436852]
[1757253899486,13.71097202,203.63,203.52,8.13]
[1757253899682,13.71097202,203.63,203.54,8.13]
[1757253899880,13.71097202,203.63,203.55,8.79436852]
[1757253900085,13.71097202,203.63,203.52,8.13]
[1757253900289,13.71097202,203.63,203.54,8.13]
[1757253900592,13.71097202,203.63,203.56,8.13]
[1757253900795,8.18,203.63,203.56,8.13]
[1757253902592,5.53097202,203.62,203.52,119.34]
[1757253902892,8.18,203.61,203.53,8.13]
[1757253903495,13.71097202,203.61,203.53,8.13]
[1757253904792,8.18,203.61,203.53,8.13]
[1757253912196,13.71097202,203.61,203.53,8.13]
[1757253912991,8.18,203.61,203.53,8.13]
[1757253914098,13.71097202,203.61,203.53,8.13]
[1757253918100,5.53097202,203.6,203.53,8.13]
[1757253918300,7.52,203.59,203.53,8.13]
[1757253919197,5.53097202,203.6,203.53,8.13]
[1757253919402,7.52,203.62,203.54,9.14586615]
[1757253919702,7.52,203.62,203.48,94.72]
[1757253919703,7.52,203.62,203.56,7.64]
[1757253925099,13.05097202,203.62,203.56,7.64]
[1757253926106,13.05097202,203.62,203.57,4.77678317]
[1757253926310,7.52,203.62,203.56,7.64]
[1757253926510,7.52,203.62,203.58,7.64]
[1757253926709,7.52,203.62,203.53,44.7]
[1757253926906,13.05097202,203.62,203.55,7.64]
[1757253927203,13.05097202,203.62,203.56,9.15920393]
[1757253927408,7.52,203.61,203.57,16.79920393]
[1757253927604,7.52,203.61,203.57,7.64]
[1757253927910,7.52,203.61,203.58,16.80027552]
[1757253928105,7.52,203.61,203.59,4.7784403]
[1757253928307,7.52,203.62,203.53,66.96]
[1757253928507,5.56690358,203.62,203.57,7.67516231]
[1757253928705,5.56690358,203.62,203.58,4.77778216]
[1757253928914,7.52,203.61,203.54,7.64]
[1757253929111,7.52,203.61,203.55,9.15556749]
[1757253929311,13.05097202,203.62,203.56,9.15556749]
[1757253929617,7.52,203.61,203.57,16.79556749]
[1757253929808,5.53097202,203.62,203.58,4.77333878]
[1757253930009,5.53097202,203.62,203.57,7.64]
[1757253930204,5.53097202,203.62,203.58,4.77397537]
[1757253930408,5.53097202,203.62,203.57,7.64]
[1757253930610,7.52,203.61,203.58,4.77365053]
[1757253930808,7.52,203.61,203.57,7.64]
[1757253931312,7.52,203.61,203.58,4.77460601]
[1757253931512,7.52,203.61,203.57,7.64]
[1757253931712,7.52,203.61,203.58,4.77436741]
[1757253931912,7.52,203.61,203.57,7.64]
[1757253932114,7.52,203.61,203.58,9.15800897]
[1757253932312,7.52,203.61,203.57,7.64]
[1757253932513,5.53097202,203.62,203.59,7.64]
[1757253932705,15.77285998,203.65,203.53,7.64]
[1757253932706,5.53097202,203.63,203.53,7.64]
[1757253932905,5.53097202,203.63,203.55,7.64]
[1757253933113,5.53097202,203.63,203.57,7.64]
[1757253933310,13.05097202,203.63,203.59,7.64]
[1757253933513,13.05097202,203.63,203.6,4.77438236]
[1757253933713,13.05097202,203.63,203.6,7.64]
[1757253934617,5.53097202,203.63,203.6,7.64]
[1757253934815,7.52,203.62,203.6,7.64]
[1757253935416,12.99097202,203.63,203.48,7.77]
[1757253935617,12.99097202,203.63,203.55,7.77]
[1757253935815,12.99097202,203.63,203.56,8.92113326]
[1757253936013,12.99097202,203.63,203.57,16.69113326]
[1757253936213,8.25285998,203.65,203.58,16.69113326]
[1757253936214,12.99097202,203.62,203.58,16.69113326]
[1757253936515,12.99097202,203.62,203.59,4.38364297]
[1757253936707,12.99097202,203.62,203.53,55.42]
[1757253936911,12.99097202,203.62,203.55,7.77]
[1757253937117,12.99097202,203.62,203.56,8.92316346]
[1757253937318,12.99097202,203.62,203.58,7.77]
[1757253937613,12.99097202,203.62,203.59,4.38464056]
[1757253937815,5.53097202,203.62,203.57,7.77]
[1757253938016,7.46,203.61,203.58,8.92519168]
[1757253938312,7.46,203.61,203.57,7.77]
[1757253938313,7.46,203.61,203.59,4.38563718]
[1757253938515,7.46,203.61,203.58,7.77]
[1757253938715,7.46,203.61,203.59,4.38687456]
[1757253938908,7.46,203.61,203.54,7.77]
[1757253939108,7.46,203.61,203.53,77.8]
[1757253939109,7.46,203.61,203.55,8.92770693]
[1757253939312,5.53097202,203.62,203.57,7.77]
[1757253939616,5.53097202,203.61,203.58,4.38687312]
[1757253939810,7.46,203.6,203.53,35.67]
[1757253940014,7.46,203.6,203.54,8.92999131]
[1757253940212,7.46,203.6,203.55,8.92999131]
[1757253940418,5.53097202,203.6,203.56,8.92999131]
[1757253940619,7.46,203.59,203.57,8.92999131]
[1757253940919,7.46,203.59,203.58,4.38799414]
[1757253943114,7.46,203.59,203.58,8.93189449]
[1757253944520,12.99097202,203.6,203.58,8.93189449]
[1757253944720,12.99097202,203.6,203.59,4.38799414]
[1757253944917,5.53097202,203.6,203.59,4.38799414]
[1757253945620,5.53097202,203.61,203.59,12.15799414]
[1757253945818,5.53097202,203.61,203.59,7.77]
[1757253946116,12.99097202,203.61,203.53,7.77]
[1757253946314,12.99097202,203.61,203.55,7.77]
[1757253946511,12.99097202,203.61,203.57,7.77]
[1757253946715,12.99097202,203.61,203.58,8.92368455]
[1757253946916,12.99097202,203.61,203.59,4.37995325]
[1757253947118,12.99097202,203.61,203.57,7.77]
[1757253947317,12.99097202,203.61,203.58,8.92372872]
[1757253947517,12.99097202,203.6,203.59,4.37997448]
[1757253948119,5.53097202,203.6,203.59,4.37997448]
[1757253948422,12.99097202,203.61,203.59,4.37997448]
[1757253948622,12.99097202,203.61,203.53,7.77]
[1757253948822,12.99097202,203.61,203.55,7.77]
[1757253949022,12.99097202,203.61,203.57,7.77]
[1757253949224,12.99097202,203.61,203.58,8.92315848]
[1757253949422,12.99097202,203.61,203.59,4.37969504]
[1757253949625,12.99097202,203.61,203.57,7.77]
[1757253949824,5.53097202,203.61,203.58,8.91075158]
[1757253950024,7.46,203.6,203.59,4.37984442]
[1757253954730,7.46,203.6,203.57,7.77]
[1757253954927,7.46,203.6,203.58,8.91285717]
[1757253955630,7.46,203.6,203.57,7.77]
[1757253955928,7.46,203.6,203.58,4.53228561]
[1757253956228,7.46,203.6,203.58,12.30228561]
[1757253956734,7.46,203.6,203.58,7.77]
[1757253957726,5.53097202,203.61,203.58,7.77]
[1757253957927,12.99097202,203.61,203.58,7.77]
[1757253958328,5.53097202,203.6,203.58,7.77]
[1757253958631,5.53097202,203.6,203.59,4.38181176]
[1757253959231,5.53097202,203.6,203.59,8.91576519]
[1757253959431,5.53097202,203.6,203.59,4.53395343]
[1757253961731,12.99097202,203.6,203.59,4.53395343]
[1757253964236,7.46,203.6,203.59,1.46245594]
[1757253969234,7.46,203.6,203.57,7.44]
[1757253969439,5.5248883,203.59,203.57,7.44]
[1757253971538,5.5248883,203.59,203.53,7.44]
[1757253976241,5.5248883,203.59,203.54,4.43620158]
[1757253976437,13.0648883,203.59,203.56,7.44]
[1757253976737,13.0648883,203.59,203.57,4.43620158]
[1757253976939,13.0648883,203.59,203.58,4.43620158]
[1757253979545,13.0648883,203.59,203.56,7.44]
[1757253979842,13.0648883,203.59,203.53,7.44]
[1757253982352,13.0648883,203.59,203.53,11.8615]
[1757253982652,13.0648883,203.59,203.54,7.44]
[1757253982952,13.0648883,203.59,203.53,4.4215]
[1757253983152,13.0648883,203.59,203.54,7.44]
[1757253983554,13.0648883,203.59,203.53,4.4215]
[1757253983750,5.5248883,203.6,203.54,7.44]
[1757253984248,114.61940895,203.69,203.58,7.44]
[1757253984249,5.5248883,203.61,203.58,7.44]
[1757253984454,5.5248883,203.62,203.58,7.44]
[1757253984654,5.5248883,203.63,203.59,4.48364614]
[1757253984856,5.5248883,203.63,203.61,7.44]
[1757253985052,5.5248883,203.63,203.62,4.48364614]
[1757253985254,7.54,203.63,203.62,4.48364614]
[1757253987758,7.54,203.64,203.62,11.92364614]
[1757253987960,5.5248883,203.67,203.64,7.44]
[1757253988266,13.0648883,203.68,203.66,7.44]
[1757253988463,7.54,203.68,203.66,7.44]
[1757253989962,5.5248883,203.72,203.68,7.44]
[1757253990162,5.5248883,203.76,203.7,7.44]
[1757253990360,7.54,203.77,203.71,4.46800821]
[1757253990660,5.5248883,203.78,203.72,4.63016437]
[1757253990965,7.54,203.77,203.74,7.44]
[1757253991265,7.54,203.77,203.69,36.24]
[1757253991464,7.54,203.77,203.71,7.44]
[1757253991664,7.54,203.78,203.72,4.62526029]
[1757253991964,7.54,203.78,203.71,7.44]
[1757253992160,7.54,203.78,203.72,4.62514741]
[1757253992360,7.54,203.78,203.71,7.44]
[1757253995760,7.54,203.78,203.67,7.64]
[1757253995964,5.5248883,203.77,203.67,7.64]
[1757253996265,7.43,203.76,203.61,7.64]
[1757253996471,5.5248883,203.77,203.62,24.37452192]
[1757253996665,5.5248883,203.77,203.63,12.25452192]
[1757253996863,7.43,203.76,203.64,4.61452192]
[1757253997164,7.43,203.76,203.65,4.61452192]
[1757253997365,7.43,203.76,203.64,38.9]
[1757253997667,7.43,203.76,203.65,4.61423772]
[1757253997869,5.5248883,203.77,203.64,38.9]
[1757253998069,7.43,203.76,203.65,4.61424128]
[1757253998367,5.5248883,203.76,203.63,7.64]
[1757253998566,12.9548883,203.75,203.63,7.64]
[1757254001464,5.5248883,203.75,203.63,26.28]
[1757254002670,7.43,203.74,203.63,26.28]
[1757254003669,7.43,203.74,203.63,7.64]
[1757254003865,7.43,203.74,203.63,45.16]
[1757254004066,5.5248883,203.75,203.63,45.16]
[1757254004269,7.43,203.74,203.63,7.64]
[1757254004574,7.43,203.74,203.59,330.16]
[1757254004575,12.9548883,203.72,203.6,7.64]
[1757254004768,7.43,203.71,203.6,24.9]
[1757254005367,5.5248883,203.72,203.6,24.9]
[1757254005567,5.5248883,203.72,203.6,7.64]
[1757254005765,7.43,203.71,203.6,7.64]
[1757254007377,7.43,203.71,203.61,4.61722946]
[1757254007673,7.43,203.71,203.6,7.64]
[1757254007874,7.43,203.71,203.61,4.61672675]
[1757254008075,7.43,203.71,203.6,7.64]
[1757254009073,5.5248883,203.72,203.6,126.88]
[1757254009473,7.43,203.69,203.6,126.88]
[1757254009974,5.5248883,203.7,203.6,126.88]
[1757254010174,7.43,203.69,203.6,126.88]
[1757254010378,7.43,203.69,203.6,7.64]
[1757254010778,5.5248883,203.7,203.6,126.86]
[1757254010979,7.43,203.69,203.6,126.86]
[1757254012476,5.5248883,203.7,203.6,126.86]
[1757254012875,7.43,203.69,203.6,126.86]
[1757254013075,5.5248883,203.7,203.6,126.86]
[1757254013275,7.43,203.69,203.6,126.86]
[1757254013682,7.43,203.69,203.6,7.64]
[1757254013883,7.43,203.69,203.6,126.82]
[1757254014082,7.43,203.69,203.61,7.64]
[1757254016978,5.5248883,203.7,203.61,7.64]
[1757254017183,12.9548883,203.73,203.62,4.6206159]
[1757254017384,12.9548883,203.73,203.64,7.64]
[1757254017578,12.9548883,203.73,203.59,330.16]
[1757254017579,12.9548883,203.73,203.66,7.64]
[1757254023282,5.5248883,203.73,203.59,330.16]
[1757254023497,5.5248883,203.71,203.6,12.26440153]
[1757254023689,7.43,203.7,203.61,4.62440153]
[1757254023891,7.43,203.7,203.62,12.26440153]
[1757254024090,7.43,203.7,203.62,7.64]
[1757254024889,5.5248883,203.69,203.62,7.64]
[1757254025085,7.75,203.68,203.62,7.64]
[1757254026795,5.5248883,203.7,203.62,7.64]
[1757254026995,13.2748883,203.71,203.64,7.47]
[1757254028294,5.5248883,203.7,203.64,7.47]
[1757254033692,7.75,203.69,203.64,7.47]
[1757254034087,5.5248883,203.7,203.62,119.36]
[1757254034290,7.75,203.69,203.63,4.63214714]
[1757254034496,5.5248883,203.7,203.64,4.63214714]
[1757254034694,7.75,203.69,203.63,7.47]
[1757254034895,5.5248883,203.7,203.64,4.63210354]
[1757254035097,7.75,203.69,203.63,7.47]
[1757254035395,7.75,203.68,203.64,4.63211184]
[1757254035596,7.75,203.68,203.65,7.47]
[1757254036396,5.5248883,203.69,203.63,7.47]
[1757254036591,5.5248883,203.69,203.64,4.63477163]
[1757254036790,5.5248883,203.69,203.63,7.47]
[1757254036996,5.5248883,203.69,203.64,4.63476532]
[1757254037197,5.5248883,203.69,203.63,7.47]
[1757254037397,5.5248883,203.69,203.65,7.47]
[1757254037596,5.5248883,203.69,203.63,7.47]
[1757254037803,13.2748883,203.69,203.64,4.63637425]
[1757254037992,13.2748883,203.69,203.65,4.63637425]
[1757254038196,5.5248883,203.69,203.68,7.47]
[1757254038501,5.5248883,203.69,203.54,571.84965708]
[1757254038502,5.5248883,203.7,203.65,119.34]
[1757254038692,5.5248883,203.7,203.67,7.47]
[1757254038896,16.00285998,203.73,203.68,8.91554375]
[1757254038897,5.5248883,203.73,203.68,8.91554375]
[1757254039097,5.5248883,203.74,203.69,8.91554375]
[1757254039298,5.5248883,203.74,203.71,7.47]
[1757254039492,7.75,203.76,203.72,8.9008633]
[1757254039493,5.5248883,203.76,203.72,8.9008633]
[1757254039693,5.5248883,203.77,203.74,7.47]
[1757254039895,5.5248883,203.76,203.74,7.47]
[1757254040203,5.5248883,203.77,203.66,7.47]
[1757254040397,5.5248883,203.77,203.68,7.47]
[1757254040601,5.5248883,203.77,203.7,7.47]
[1757254040904,5.5248883,203.77,203.71,128.31881307]
[1757254041102,5.5248883,203.77,203.72,8.89881307]
[1757254041301,5.5248883,203.77,203.74,7.47]
[1757254042301,5.5248883,203.78,203.74,7.47]
[1757254042500,13.2748883,203.78,203.74,7.47]
[1757254043303,7.75,203.77,203.74,7.47]
[1757254043704,5.5248883,203.78,203.71,104.86]
[1757254043896,13.2748883,203.78,203.72,8.88880614]
[1757254044091,13.2748883,203.78,203.71,112.33]
[1757254044092,7.75,203.77,203.73,12.08659814]
[1757254044298,7.75,203.77,203.73,7.47]
[1757254046499,7.75,203.78,203.73,7.47]
[1757254047094,5.5248883,203.79,203.73,7.47]